fUSD/lending_fUSD_20250519
["ID","MTS","AMOUNT","RATE_DAILY","PERIOD"]
[361677004,1747681914694,-420.0,0.00042649,120]
[361677005,1747681914734,-1459.04,0.00042649,120]
[361677006,1747681914774,-727.55,0.00042649,120]
[361677007,1747681914815,-420.0,0.00042649,120]
[361677008,1747681914854,-420.0,0.00042649,120]
[361677009,1747681914894,-1459.04,0.00042649,120]
[361677010,1747681914934,-487.95393094,0.00042649,120]
[361677011,1747681914974,-727.55,0.00042649,120]
[361677012,1747681915012,-595.25,0.00042649,120]
[361677013,1747681915050,-420.0,0.00042649,120]
[361677014,1747681915086,-1459.04,0.00042649,120]
[361677015,1747681915123,-420.0,0.00042649,120]
[361677016,1747681915158,-595.25,0.00042649,120]
[361677017,1747681915194,-420.0,0.00042649,120]
[361677018,1747681915232,-1459.04,0.00042649,120]
[361677019,1747681915268,-727.55,0.00042649,120]
[361677020,1747681915305,-420.0,0.00042649,120]
[361677021,1747681915343,-595.25,0.00042649,120]
[361677022,1747681915379,-420.0,0.00042649,120]
[361677023,1747681915415,-727.55,0.00042649,120]
[361677024,1747681915452,-1459.04,0.00042649,120]
[361677025,1747681915489,-420.0,0.00042649,120]
[361677026,1747681915528,-595.25,0.00042649,120]
[361677027,1747681915566,-420.0,0.00042649,120]
[361677028,1747681915604,-727.55,0.00042649,120]
[361677029,1747681915643,-1459.04,0.00042649,120]
[361677030,1747681915680,-778.43,0.00042649,120]
[361677031,1747681915718,-420.0,0.00042649,120]
[361677032,1747681915758,-595.25,0.00042649,120]
[361677033,1747681915796,-420.0,0.00042649,120]
[361677034,1747681915833,-420.0,0.00042649,120]
[361677035,1747681915873,-778.43,0.00042649,120]
[361677036,1747681915911,-727.55,0.00042649,120]
[361677037,1747681915948,-420.0,0.00042649,120]
[361677038,1747681915986,-420.0,0.00042649,120]
[361677039,1747681916024,-595.25,0.00042649,120]
[361677040,1747681916064,-420.0,0.00042649,120]
[361677041,1747681916102,-778.43,0.00042649,120]
[361677042,1747681916142,-727.55,0.00042649,120]
[361677043,1747681916180,-420.0,0.00042649,120]
[361677044,1747681916219,-420.0,0.00042649,120]
[361677045,1747681916257,-420.0,0.00042649,120]
[361677046,1747681916582,-595.25,0.00042649,120]
[361677047,1747681916626,-1459.04,0.00042649,120]
[361677048,1747681916669,-778.43,0.00042649,120]
[361677049,1747681916710,-727.71,0.00042649,120]
[361677050,1747681916752,-420.0,0.00042649,120]
[361677051,1747681916796,-420.0,0.00042649,120]
[361677052,1747681916839,-595.25,0.00042649,120]
[361677053,1747681916878,-1459.04,0.00042649,120]
[361677054,1747681916918,-420.0,0.00042649,120]
[361677055,1747681916962,-778.43,0.00042649,120]
[361677056,1747681916998,-420.0,0.00042649,120]
[361677057,1747681917038,-595.25,0.00042649,120]
[361677058,1747681917074,-1459.04,0.00042649,120]
[361677059,1747681917111,-420.0,0.00042649,120]
[361677060,1747681917147,-778.43,0.00042649,120]
[361677061,1747681917183,-420.0,0.00042649,120]
[361677062,1747681917219,-425.06474102,0.00042649,120]
[361677063,1747681917254,-595.25,0.00042649,120]
[361677064,1747681917290,-1459.04,0.00042649,120]
[361677065,1747681917325,-778.43,0.00042649,120]
[361677066,1747681917361,-420.0,0.00042649,120]
[361677067,1747681917396,-595.25,0.00042649,120]
[361677068,1747681917431,-420.0,0.00042649,120]
[361677069,1747681917467,-1459.04,0.00042649,120]
[361677070,1747681917505,-420.0,0.00042649,120]
[361677071,1747681917542,-1085.59,0.00042649,120]
[361677072,1747681917579,-595.25,0.00042649,120]
[361677073,1747681917620,-420.0,0.00042649,120]
[361677074,1747681917656,-420.0,0.00042649,120]
[361677075,1747681917695,-1459.04,0.00042649,120]
[361677076,1747681917732,-1085.59,0.00042649,120]
[361677077,1747681917770,-595.25,0.00042649,120]
[361677078,1747681917807,-778.43,0.00042649,120]
[361677079,1747681917845,-420.0,0.00042649,120]
[361677080,1747681917882,-420.0,0.00042649,120]
[361677081,1747681917919,-1459.04,0.00042649,120]
[361677082,1747681917955,-1085.59,0.00042649,120]
[361677083,1747681917996,-595.25,0.00042649,120]
[361677084,1747681918035,-778.43,0.00042649,120]
[361677085,1747681918073,-420.0,0.00042649,120]
[361677086,1747681918111,-420.0,0.00042649,120]
[361677087,1747681918148,-1459.04,0.00042649,120]
[361677088,1747681918186,-1085.59,0.00042649,120]
[361677089,1747681918222,-595.25,0.00042649,120]
[361677090,1747681918258,-420.0,0.00042649,120]
[361677091,1747681918295,-420.0,0.00042649,120]
[361677092,1747681918331,-420.0,0.00042649,120]
[361677093,1747681918372,-778.43,0.00042649,120]
[361677094,1747681918410,-1085.59,0.00042649,120]
[361677095,1747681918450,-595.25,0.00042649,120]
[361677096,1747681918488,-361.69057781,0.00042649,120]
[361677097,1747681918526,-420.0,0.00042649,120]
[361677098,1747681918564,-380.0,0.00042649,120]
[361677099,1747681918604,-778.43,0.00042649,120]
[361677100,1747681918644,-1085.59,0.00042649,120]
[361677101,1747681918683,-1459.04,0.00042649,120]
[361677102,1747681918722,-595.25,0.00042649,120]
[361677103,1747681918762,-521.24,0.00042649,120]
[361677104,1747681918803,-778.43,0.00042649,120]
[361677105,1747681918848,-1085.59,0.00042649,120]
[361677106,1747681918887,-1459.04,0.00042649,120]
[361677107,1747681918927,-595.25,0.00042649,120]
[361677108,1747681918967,-778.43,0.00042649,120]
[361677109,1747681919007,-1085.59,0.00042649,120]
[361677110,1747681919045,-1459.04,0.00042649,120]
[361677111,1747681919085,-595.25,0.00042649,120]
[361677112,1747681919122,-778.43,0.00042649,120]
[361677113,1747681919160,-595.25,0.00042649,120]
[361677114,1747681919198,-1459.04,0.00042649,120]
[361677115,1747681919236,-778.43,0.00042649,120]
[361677116,1747681919274,-595.25,0.00042649,120]
[361677117,1747681919312,-1459.04,0.00042649,120]
[361677118,1747681919446,-1085.59,0.00042649,120]
[361677119,1747681919486,-778.43,0.00042649,120]
[361677120,1747681919525,-595.25,0.00042649,120]
[361677121,1747681919565,-1459.04,0.00042649,120]
[361677122,1747681919604,-1085.59,0.00042649,120]
[361677123,1747681919645,-778.43,0.00042649,120]
[361677124,1747681919686,-595.25,0.00042649,120]
[361677125,1747681919727,-1459.11729779,0.00042649,120]
[361677126,1747681919768,-1085.59,0.00042649,120]
[361677127,1747681919809,-778.43,0.00042649,120]
[361677128,1747681919848,-595.38355306,0.00042649,120]
[361677129,1747681919889,-1085.59,0.00042649,120]
[361677130,1747681919930,-778.43,0.00042649,120]
[361677131,1747681919968,-420.0,0.00042649,120]
[361677132,1747681920007,-420.0,0.00042649,120]
[361677133,1747681920055,-420.0,0.00042649,120]
[361677134,1747681920105,-778.43,0.00042649,120]
[361677135,1747681920155,-420.0,0.00042649,120]
[361677136,1747681920203,-380.0,0.00042649,120]
[361677137,1747681920242,-420.0,0.00042649,120]
[361677138,1747681920280,-420.0,0.00042649,120]
[361677139,1747681920318,-1085.59,0.00042649,120]
[361677140,1747681920354,-778.43,0.00042649,120]
[361677141,1747681920391,-420.0,0.00042649,120]
[361677142,1747681920426,-420.0,0.00042649,120]
[361677143,1747681920463,-420.0,0.00042649,120]
[361677144,1747681920502,-778.43,0.00042649,120]
[361677145,1747681920541,-1085.59,0.00042649,120]
[361677146,1747681920579,-420.0,0.00042649,120]
[361677147,1747681920617,-420.0,0.00042649,120]
[361677148,1747681920656,-778.43,0.00042649,120]
[361677149,1747681920696,-1085.59,0.00042649,120]
[361677150,1747681920738,-420.0,0.00042649,120]
[361677151,1747681920778,-317.44204332,0.00042649,120]
[361677152,1747681920817,-1085.59,0.00042649,120]
[361677153,1747681920854,-778.59265092,0.00042649,120]
[361677154,1747681920890,-420.0,0.00042649,120]
[361677155,1747681920928,-420.0,0.00042649,120]
[361677156,1747681920963,-420.0,0.00042649,120]
[361677157,1747681920999,-1085.59,0.00042649,120]
[361677158,1747681921041,-420.0,0.00042649,120]
[361677159,1747681921078,-420.0,0.00042649,120]
[361677160,1747681921117,-420.0,0.00042649,120]
[361677161,1747681921155,-491.33222598,0.00042649,120]
[361677162,1747681921195,-1085.59,0.00042649,120]
[361677163,1747681921234,-420.0,0.00042649,120]
[361677164,1747681921274,-341.43331563,0.00042649,120]
[361677165,1747681921310,-420.0,0.00042649,120]
[361677166,1747681921348,-1085.59,0.00042649,120]
[361677167,1747681921384,-420.0,0.00042649,120]
[361677168,1747681921425,-420.0,0.00042649,120]
[361677169,1747681921461,-1085.59,0.00042649,120]
[361677170,1747681921498,-420.0,0.00042649,120]
[361677171,1747681921536,-420.0,0.00042649,120]
[361677172,1747681921574,-1085.59,0.00042649,120]
[361677173,1747681921611,-420.0,0.00042649,120]
[361677174,1747681921650,-420.0,0.00042649,120]
[361677175,1747681921688,-1085.59,0.00042649,120]
[361677176,1747681921725,-420.0,0.00042649,120]
[361677177,1747681921763,-420.0,0.00042649,120]
[361677178,1747681921801,-420.0,0.00042649,120]
[361677179,1747681921839,-1085.59,0.00042649,120]
[361677180,1747681921875,-420.0,0.00042649,120]
[361677181,1747681921911,-420.0,0.00042649,120]
[361677182,1747681921948,-1085.80276562,0.00042649,120]
[361677183,1747681921984,-579.28,0.00042649,120]
[361677184,1747681922024,-420.0,0.00042649,120]
[361677185,1747681922070,-420.0,0.00042649,120]
[361677186,1747681922106,-280.0,0.00042649,120]
[361677187,1747681922144,-420.0,0.00042649,120]
[361677188,1747681922182,-1034.43,0.00042649,120]
[361677189,1747681922221,-579.28,0.00042649,120]
[361677190,1747681922257,-420.0,0.00042649,120]
[361677191,1747681922293,-400.0,0.00042649,120]
[361677192,1747681922329,-466.84313746,0.00042649,120]
[361677193,1747681922364,-1034.43,0.00042649,120]
[361677194,1747681922401,-579.28,0.00042649,120]
[361677195,1747681922650,-329.49682374,0.00042649,120]
[361677196,1747681922694,-579.28,0.00042649,120]
[361677197,1747681922735,-823.08,0.00042649,120]
[361677198,1747681922777,-21.41207082,0.00042649,120]
[361677199,1747681927244,671.89,9.011e-05,2]
[361677200,1747681937921,168.91,0.00010915,2]
[361677201,1747681940994,-217.25474752,0.00011233,2]
[361677202,1747681946828,23900.0,0.00010901,2]
[361677203,1747681946915,-217.25474752,0.00011233,2]
[361677204,1747681951375,500.0,0.00010896,2]
[361677205,1747681952686,-450.0,0.00011233,2]
[361677206,1747681952698,-3115.49050496,0.00011233,2]
[361677207,1747681952707,-671.89,0.00011275,2]
[361677208,1747681952716,-381.69,0.00011348,2]
[361677209,1747681952725,-200.0,0.00011449,2]
[361677210,1747681952735,-200.0,0.00011571,2]
[361677211,1747681952744,-381.69,0.00011758,2]
[361677212,1747681952753,-300.0,0.00011799,2]
[361677213,1747681952762,-451.97949504,0.000118,2]
[361677214,1747681952773,-1156.49760496,0.000118,2]
[361677215,1747681952782,-500.0,0.00011873,2]
[361677216,1747681952791,-500.0,0.00011873,2]
[361677217,1747681952801,-379.15062619,0.00011873,2]
[361677218,1747681952810,-379.15062614,0.00011876,2]
[361677219,1747681952819,-379.15062614,0.00011879,2]
[361677220,1747681952827,-379.15062614,0.00011882,2]
[361677221,1747681952836,-379.15062614,0.00011885,2]
[361677222,1747681952845,-379.15062614,0.00011888,2]
[361677223,1747681952854,-379.15062614,0.00011891,2]
[361677224,1747681952863,-379.15062614,0.00011894,2]
[361677225,1747681952872,-379.15062614,0.00011897,2]
[361677226,1747681952881,-193.57190317,0.00011899,2]
[361677227,1747681952891,-500.0,0.00011899,2]
[361677228,1747681952900,-500.0,0.00011899,2]
[361677229,1747681952909,-500.0,0.00011899,2]
[361677230,1747681952919,-500.0,0.00011899,2]
[361677231,1747681952928,-500.0,0.00011899,2]
[361677232,1747681952937,-500.0,0.00011899,2]
[361677233,1747681952946,-500.0,0.00011899,2]
[361677234,1747681952955,-500.0,0.00011899,2]
[361677235,1747681952964,-500.0,0.00011899,2]
[361677236,1747681952973,-500.0,0.00011899,2]
[361677237,1747681952982,-500.0,0.00011899,2]
[361677238,1747681952992,-500.0,0.00011899,2]
[361677239,1747681953001,-500.0,0.00011899,2]
[361677240,1747681953010,-500.0,0.00011899,2]
[361677241,1747681953019,-500.0,0.00011899,2]
[361677242,1747681953028,-500.0,0.00011899,2]
[361677243,1747681953039,-500.0,0.00011899,2]
[361677244,1747681953051,-500.0,0.00011899,2]
[361677245,1747681953061,-500.0,0.00011899,2]
[361677246,1747681953071,-500.0,0.00011899,2]
[361677247,1747681953081,-500.0,0.00011899,2]
[361677248,1747681953091,-500.0,0.00011899,2]
[361677249,1747681953101,-500.0,0.00011899,2]
[361677250,1747681953111,-500.0,0.00011899,2]
[361677251,1747681953123,-500.0,0.00011899,2]
[361677252,1747681953133,-500.0,0.00011899,2]
[361677253,1747681953145,-500.0,0.00011899,2]
[361677254,1747681953155,-500.0,0.00011899,2]
[361677255,1747681953165,-500.0,0.00011899,2]
[361677256,1747681953174,-500.0,0.00011899,2]
[361677257,1747681953184,-500.0,0.00011899,2]
[361677258,1747681953197,-500.0,0.00011899,2]
[361677259,1747681953208,-500.0,0.00011899,2]
[361677260,1747681953219,-500.0,0.00011899,2]
[361677261,1747681953229,-500.0,0.00011899,2]
[361677262,1747681953239,-500.0,0.00011899,2]
[361677263,1747681953523,-500.0,0.00011899,2]
[361677264,1747681953552,-500.0,0.00011899,2]
[361677265,1747681953562,-500.0,0.00011899,2]
[361677266,1747681953571,-628.95598845,0.00011899,2]
[361677267,1747681953582,-500.0,0.00011899,2]
[361677268,1747681953593,-500.0,0.00011899,2]
[361677269,1747681953603,-500.0,0.00011899,2]
[361677270,1747681953613,-500.0,0.00011899,2]
[361677271,1747681953623,-500.0,0.00011899,2]
[361677272,1747681953633,-150.0,0.00011899,2]
[361677273,1747681953643,-8209.9334,0.000119,2]
[361677274,1747681953653,-78976.3426,0.000119,2]
[361677275,1747681953663,-546.11541917,0.000119,2]
[361677276,1747681953674,-1000.0,0.000119,2]
[361677277,1747681953683,-1000.0,0.000119,2]
[361677278,1747681953694,-195.91561002,0.000119,2]
[361677279,1747681953703,-272.0047,0.000119,2]
[361677280,1747681953714,-170.64077926,0.000119,2]
[361677281,1747681953724,-219.8348563,0.000119,2]
[361677282,1747681953733,-379.15062614,0.000119,2]
[361677283,1747681953743,-10012.34589869,0.000119,2]
[361677284,1747681953753,-559.16764018,0.000119,2]
[361677285,1747681953762,-181.99524524,0.000119,2]
[361677286,1747681953772,-1174.0,0.00011973,2]
[361677287,1747681953782,-3842.0,0.00011973,2]
[361677288,1747681953792,-500.0,0.00011973,2]
[361677289,1747681953802,-500.0,0.00011973,2]
[361677290,1747681953811,-500.0,0.00011973,2]
[361677291,1747681953821,-500.0,0.00011973,2]
[361677292,1747681953830,-500.0,0.00011973,2]
[361677293,1747681953839,-165.1689504,0.00011973,2]
[361677294,1747681953850,-182.5881884,0.00011999,2]
[361677295,1747681953859,-208.72671657,0.00011999,2]
[361677296,1747681953869,-194287.61096855,0.00012,2]
[361677297,1747681953878,-36861.91018767,0.00012,2]
[361677298,1747681953891,-1845.10366259,0.00012,2]
[361677299,1747681953902,-2445.75038882,0.00012,2]
[361677300,1747681953914,-6983.88672399,0.00012,2]
[361677301,1747681953925,-302.0,0.00012,2]
[361677302,1747681953937,-5023.00535554,0.00012,2]
[361677303,1747681953969,-856.5879686,0.00012,2]
[361677304,1747681955226,-18283.7842712,0.00012,2]
[361677305,1747681955239,-392962.39066227,0.00012,2]
[361677306,1747681955251,-19542.52085599,0.00012,2]
[361677307,1747681955263,-598.30258062,0.00012,2]
[361677308,1747681955330,-5230.24177752,0.00012,2]
[361677309,1747681955341,-41951.67206833,0.00012,2]
[361677310,1747681955352,-742.41129901,0.00012,2]
[361677311,1747681955363,-1854.9,0.00012,2]
[361677312,1747681955404,-1362.16389,0.00012,2]
[361677313,1747681955416,-286.92376616,0.00012,2]
[361677314,1747681955427,-1693.6999999,0.00012,2]
[361677315,1747681955439,-6346.50000008,0.00012,2]
[361677316,1747681955450,-586.98352101,0.00012,2]
[361677317,1747681955912,-463.28746673,0.00012,2]
[361677318,1747681955924,-7634.34287677,0.00012,2]
[361677319,1747681955935,-1563.46598488,0.00012,2]
[361677320,1747681955946,-1222.56000018,0.00012,2]
[361677321,1747681955971,-347.50028494,0.00012,2]
[361677322,1747681955982,-277.595,0.00012,2]
[361677323,1747681955993,-584.78514729,0.00012,2]
[361677324,1747681956148,-1771.25319966,0.00012,2]
[361677325,1747681956460,-624.88728,0.00012,2]
[361677326,1747681956472,-10682.76736768,0.00012,2]
[361677327,1747681956509,-102.72614147,0.00012,2]
[361677328,1747681956897,-5062183.40632181,0.00012,2]
[361677329,1747681956910,-431.70372,0.00012,2]
[361677330,1747681956923,-1352.25,0.00012,2]
[361677331,1747681957132,-5669.31040505,0.00012,2]
[361677332,1747681957158,-235546.01561669,0.00012,2]
[361677333,1747681957169,-500.0,0.00012,2]
[361677334,1747681957740,-4452.49717128,0.00012,2]
[361677335,1747681957751,-547.0,0.00012,2]
[361677336,1747681957763,-2910.02301602,0.00012,2]
[361677337,1747681957775,-1729.85740307,0.00012,2]
[361677338,1747681957788,-330.90406925,0.00012,2]
[361677339,1747681957799,-9594.82267057,0.00012,2]
[361677340,1747681957826,-36070.06559436,0.00012,2]
[361677341,1747681958451,-302.0,0.00012,2]
[361677342,1747681958464,-577.13,0.00012,2]
[361677343,1747681958476,-15280.11589186,0.00012,2]
[361677344,1747681958529,-44100.42079226,0.00012,2]
[361677345,1747681958554,-39660.03882731,0.00012,2]
[361677346,1747681958566,-782151.80054022,0.00012,2]
[361677347,1747681959479,-153.23491478,0.00012,2]
[361677348,1747681959724,-6132.22690193,0.00012,2]
[361677349,1747681960508,-110984.28869239,0.00012,2]
[361677350,1747681960524,-7689.3391,0.00012,2]
[361677351,1747681964887,20676.52,0.00010884,2]
[361677352,1747681965735,1001.55,0.00010958,2]
[361677353,1747681974317,499.01717826,0.00010484,2]
[361677354,1747681979921,300.0,0.00010883,2]
[361677355,1747682199438,366.79,0.00010636,2]
[361677356,1747682357212,575.92,0.00010645,2]
[361677357,1747682404080,197.56,0.00011193,2]
[361677358,1747682546258,164.2,0.00010587,2]
[361677359,1747682581725,250.0,0.00010593,2]
[361677360,1747682671446,200.0,0.00010601,2]
[361677362,1747682741123,-187.17,0.000113,2]
[361677363,1747682741144,-200.0,0.000113,2]
[361677364,1747682741164,-45.86965743,0.000113,2]
[361677366,1747682777484,2804.85,0.00010612,2]
[361677367,1747682832652,9058.89339459,0.00010547,2]
[361677368,1747682832678,14841.10660541,0.00010547,2]
[361677369,1747682862988,26506.36,0.00010547,2]
[361677370,1747682874805,16290.15969313,0.0001,2]
[361677371,1747682881005,734.74,8.619e-05,2]
[361677372,1747682881193,734.74,0.00010882,2]
[361677374,1747682907667,-186.68430415,0.00011233,2]
[361677375,1747682910583,-226.23444383,0.00011233,2]
[361677376,1747682912804,-236.6342652,0.00011233,2]
[361677377,1747682915168,185.29,0.00010566,2]
[361677378,1747682915423,185.29,0.00010962,2]
[361677379,1747682917151,-173.15398828,0.00011233,2]
[361677380,1747682921010,-271.11299854,0.00011233,2]
[361677383,1747682972326,315.01,0.00010597,2]
[361677384,1747682974210,-250.0,0.000113,2]
[361677385,1747682974232,-200.0,0.000113,2]
[361677386,1747682974252,-200.0,0.000113,2]
[361677387,1747682974272,-5077.95075994,0.000113,2]
[361677388,1747682974293,-250.0,0.00011302,2]
[361677389,1747682974313,-200.0,0.00011302,2]
[361677390,1747682974334,-187.17,0.00011303,2]
[361677391,1747682974355,-187.17,0.00011306,2]
[361677392,1747682974378,-187.17,0.00011309,2]
[361677393,1747682974401,-1200.0,0.00011311,2]
[361677394,1747682974424,-187.17,0.00011312,2]
[361677395,1747682974447,-187.17,0.00011315,2]
[361677396,1747682974469,-187.17,0.00011318,2]
[361677397,1747682974492,-187.17,0.00011321,2]
[361677398,1747682974512,-187.17,0.00011324,2]
[361677399,1747682974533,-300.0,0.00011325,2]
[361677400,1747682974553,-300.0,0.00011326,2]
[361677401,1747682974576,-187.17,0.00011327,2]
[361677402,1747682974597,-187.17,0.0001133,2]
[361677403,1747682974618,-187.17,0.00011333,2]
[361677404,1747682974639,-187.17,0.00011336,2]
[361677405,1747682974662,-187.17,0.00011339,2]
[361677406,1747682974684,-187.17,0.00011342,2]
[361677407,1747682974704,-187.17,0.00011345,2]
[361677408,1747682974725,-187.17,0.00011348,2]
[361677409,1747682974746,-187.17,0.0001135,2]
[361677410,1747682974767,-187.17,0.00011353,2]
[361677411,1747682974788,-150.0,0.00011356,2]
[361677412,1747682974809,-187.17,0.00011356,2]
[361677413,1747682974830,-185.29,0.00011358,2]
[361677414,1747682974851,-518.39,0.00011553,2]
[361677415,1747682974870,-1237.93131325,0.00011601,2]
[361677416,1747682974890,-185.29,0.00011755,2]
[361677417,1747682974911,-164.81,0.0001176,2]
[361677418,1747682974934,-363.0,0.00011798,2]
[361677419,1747682974953,-479.7067,0.000118,2]
[361677420,1747682974975,-248.0,0.00011844,2]
[361677421,1747682974997,-1204.18785825,0.00011873,2]
[361677422,1747682975020,-1204.18785816,0.00011876,2]
[361677423,1747682975042,-1204.18785816,0.00011879,2]
[361677424,1747682975063,-1204.18785816,0.00011882,2]
[361677425,1747682975082,-441.27790952,0.0001189,2]
[361677426,1747682975102,-150.20772618,0.0001189,2]
[361677427,1747682975121,-226.8743,0.0001189,2]
[361677428,1747682975142,-375.45294857,0.00011899,2]
[361677429,1747682975162,-46802.07924981,0.000119,2]
[361677434,1747683031527,-1021.53251625,0.000118,2]
[361677436,1747683031537,-250.0,0.00011842,2]
[361677438,1747683031546,-200.0,0.00011842,2]
[361677440,1747683031555,-200.0,0.00011872,2]
[361677441,1747683031564,-1058.33915285,0.00011885,2]
[361677442,1747683031616,-145.84870531,0.00011885,2]
[361677443,1747683031626,-917.59638863,0.00011888,2]
[361677444,1747683031638,-286.59146953,0.00011888,2]
[361677445,1747683031647,-1204.18785816,0.00011891,2]
[361677446,1747683031656,-1204.18785816,0.00011894,2]
[361677447,1747683031665,-1204.18785816,0.00011897,2]
[361677448,1747683031674,-300.0,0.00011898,2]
[361677449,1747683031684,-300.0,0.00011899,2]
[361677450,1747683031694,-1200.0,0.00011899,2]
[361677451,1747683031703,-150.0,0.00011899,2]
[361677462,1747683032033,-2166.49480844,0.000119,2]
[361677463,1747683032076,-2703.36188755,0.000119,2]
[361677464,1747683032091,-1089.2883542,0.000119,2]
[361677465,1747683032100,-1000.0,0.000119,2]
[361677466,1747683032109,-571.1729,0.000119,2]
[361677467,1747683032118,-166.81255399,0.000119,2]
[361677468,1747683032127,-4853.93064798,0.000119,2]
[361677469,1747683032136,-399.75,0.000119,2]
[361677470,1747683032145,-466.7858,0.000119,2]
[361677471,1747683032154,-1835.5699647,0.000119,2]
[361677472,1747683032163,-960.32611844,0.000119,2]
[361677473,1747683032171,-2500.0,0.000119,2]
[361677474,1747683032180,-356.8056344,0.000119,2]
[361677475,1747683032190,-1204.18785816,0.000119,2]
[361677476,1747683032199,-463.71046708,0.000119,2]
[361677477,1747683032208,-195.67071287,0.000119,2]
[361677478,1747683032216,-260.22,0.00011959,2]
[361677479,1747683032225,-260.22,0.00011959,2]
[361677480,1747683032237,-366.79,0.00011966,2]
[361677481,1747683032246,-500.0,0.00011968,2]
[361677482,1747683032258,-500.0,0.00011968,2]
[361677483,1747683032269,-500.0,0.00011968,2]
[361677484,1747683032280,-500.0,0.00011968,2]
[361677485,1747683032289,-500.0,0.00011968,2]
[361677486,1747683032297,-500.0,0.00011968,2]
[361677487,1747683032306,-500.0,0.00011968,2]
[361677488,1747683032315,-500.0,0.00011968,2]
[361677489,1747683032324,-500.0,0.00011968,2]
[361677490,1747683032332,-500.0,0.00011968,2]
[361677491,1747683032341,-500.0,0.00011968,2]
[361677492,1747683032350,-500.0,0.00011968,2]
[361677493,1747683032359,-500.0,0.00011968,2]
[361677494,1747683032368,-500.0,0.00011968,2]
[361677495,1747683032377,-500.0,0.00011968,2]
[361677496,1747683032386,-500.0,0.00011968,2]
[361677497,1747683032395,-500.0,0.00011968,2]
[361677498,1747683032405,-500.0,0.00011968,2]
[361677499,1747683032414,-286.25898818,0.00011968,2]
[361677500,1747683032429,-213.74101182,0.00011968,2]
[361677501,1747683032438,-500.0,0.00011968,2]
[361677502,1747683032447,-500.0,0.00011968,2]
[361677503,1747683032457,-500.0,0.00011968,2]
[361677504,1747683032465,-500.0,0.00011968,2]
[361677505,1747683032474,-500.0,0.00011968,2]
[361677506,1747683032483,-500.0,0.00011968,2]
[361677507,1747683032492,-500.0,0.00011968,2]
[361677508,1747683032501,-500.0,0.00011968,2]
[361677509,1747683032511,-500.0,0.00011968,2]
[361677510,1747683032521,-500.0,0.00011968,2]
[361677511,1747683032530,-500.0,0.00011968,2]
[361677512,1747683032539,-500.0,0.00011968,2]
[361677513,1747683032548,-500.0,0.00011968,2]
[361677514,1747683032556,-500.0,0.00011968,2]
[361677515,1747683032565,-279.2251921,0.00011968,2]
[361677516,1747683032574,-500.0,0.00011968,2]
[361677517,1747683032585,-500.0,0.00011968,2]
[361677518,1747683032594,-500.0,0.00011968,2]
[361677519,1747683032603,-500.0,0.00011968,2]
[361677520,1747683032611,-500.0,0.00011968,2]
[361677521,1747683032620,-500.0,0.00011968,2]
[361677522,1747683032629,-500.0,0.00011968,2]
[361677523,1747683032638,-500.0,0.00011968,2]
[361677524,1747683032647,-500.0,0.00011968,2]
[361677525,1747683032656,-500.0,0.00011968,2]